bitfinex/quotes_ETHUSD_20220123
["timestamp","ask_amount","ask_price","bid_price","bid_amount"]
[1642962369847,2.90011092,2425.8,2425.5,0.494]
[1642962370049,1.32434851,2425.7,2425.5,0.494]
[1642962371590,1.32434851,2425.7,2425.5,0.23694319]
[1642962375428,8.10562,2425.6,2425.5,0.23694319]
[1642962375631,0.02952236,2425.5,2424.5,0.00142901]
[1642962375828,0.02952236,2425.5,2424.6,0.494]
[1642962375829,0.1648,2425.4,2424.6,0.494]
[1642962376136,1.40160249,2425.0,2424.7,0.494]
[1642962376329,0.1648,2424.9,2424.7,0.494]
[1642962376530,0.1648,2425.3,2424.7,0.494]
[1642962376729,3.10573092,2425.6,2424.7,0.494]
[1642962376730,1.15245871,2425.4,2424.7,0.494]
[1642962376934,0.20562,2425.6,2424.7,0.494]
[1642962376935,0.1648,2425.3,2424.7,0.494]
[1642962377137,0.1648,2425.5,2424.7,0.494]
[1642962377537,0.1648,2425.6,2424.7,0.494]
[1642962377840,1.36299767,2425.5,2424.7,0.494]
[1642962378037,1.27245424,2425.4,2424.7,0.494]
[1642962378437,0.1648,2425.4,2424.7,0.494]
[1642962378648,7.00011092,2425.7,2424.7,0.494]
[1642962378649,4.1,2425.7,2424.8,0.06969591]
[1642962378893,4.1,2425.7,2424.9,0.494]
[1642962379099,4.1,2425.7,2425.1,6.177]
[1642962379292,4.1,2425.7,2425.2,0.494]
[1642962379493,4.1,2425.7,2425.2,2.68735815]
[1642962379690,4.1,2425.7,2425.2,2.98735815]
[1642962379893,4.1,2425.7,2425.3,0.06969591]
[1642962380092,4.1,2425.7,2425.4,0.494]
[1642962380293,4.1,2425.7,2425.5,2.49645081]
[1642962380493,4.1,2425.7,2425.6,8.344]
[1642962380695,4.1,2425.7,2425.6,8.644]
[1642962380895,4.1,2425.7,2425.6,8.71369591]
[1642962381203,0.0001,2425.7,2425.6,9.71369591]
[1642962381393,0.35168455,2426.4,2425.7,6.1]
[1642962381595,0.35168455,2426.4,2425.8,0.494]
[1642962381794,0.35168455,2426.4,2425.8,1.494]
[1642962381795,3.25179547,2426.4,2425.8,1.494]
[1642962381997,0.35168455,2426.4,2425.8,1.494]
[1642962382197,0.35168455,2426.4,2425.8,2.7310121]
[1642962382396,0.35168455,2426.4,2425.8,0.494]
[1642962382641,3.25179547,2426.4,2425.8,0.33932263]
[1642962382840,2.90011092,2426.3,2425.8,0.18932263]
[1642962383441,3.25179547,2426.4,2425.8,0.18932263]
[1642962383640,3.20179547,2426.4,2425.8,0.18932263]
[1642962384041,0.30168455,2426.4,2425.8,0.18932263]
[1642962384246,0.30168455,2426.4,2425.9,0.06969591]
[1642962384440,0.30168455,2426.4,2426.0,0.494]
[1642962384844,0.30168455,2426.4,2426.1,0.06969591]
[1642962385042,0.30168455,2426.4,2426.2,0.494]
[1642962385444,0.30168455,2426.4,2426.3,0.06969591]
[1642962385643,4.40168455,2426.4,2426.3,0.494]
[1642962385946,7.30179547,2426.4,2426.3,0.45638534]
[1642962386144,4.40168455,2426.4,2426.3,0.45638534]
[1642962387181,8.27626627,2426.4,2425.9,0.494]
[1642962387382,8.27626627,2426.4,2425.6,0.494]
[1642962387383,1.28676499,2425.8,2425.6,0.494]
[1642962391435,2.11946116,2425.8,2425.6,0.494]
[1642962391642,1.28676499,2425.8,2425.6,0.494]
[1642962392640,3.0834337,2426.1,2425.6,0.494]
[1642962392641,0.17712626,2426.1,2425.6,0.494]
[1642962393044,0.33088649,2426.2,2425.6,0.494]
[1642962393441,3.23719393,2426.2,2425.6,0.494]
[1642962393890,0.33088649,2426.2,2425.6,0.494]
[1642962394094,0.33088649,2426.2,2425.7,2.86797884]
[1642962394296,0.33088649,2426.2,2425.8,0.494]
[1642962394492,0.33088649,2426.2,2425.8,1.56369591]
[1642962394691,0.33088649,2426.2,2425.9,0.06969591]
[1642962394892,8.649e-05,2426.2,2426.1,5.85]
[1642962395093,8.649e-05,2426.2,2426.1,7.294]
[1642962395290,8.649e-05,2426.2,2426.1,2.66149591]
[1642962395692,8.649e-05,2426.2,2426.1,1.66149591]
[1642962395891,4.10008649,2426.2,2426.1,2.66149591]
[1642962396091,4.10008649,2426.2,2426.1,1.66149591]
[1642962396290,4.10008649,2426.2,2426.1,1.86369591]
[1642962396593,4.10008649,2426.2,2426.1,0.86369591]
[1642962396995,4.10008649,2426.2,2426.1,0.56369591]
[1642962397637,4.10008649,2426.2,2426.1,0.38369424]
[1642962397840,4.10008649,2426.2,2426.1,0.10479174]
[1642962398240,4.10008649,2426.2,2425.0,1.1369]
[1642962398241,7.00639393,2426.2,2425.0,1.1369]
[1642962398438,1.40621977,2425.8,2425.7,0.494]
[1642962398640,3.06804598,2426.1,2425.7,0.494]
[1642962398840,4.26488649,2426.2,2425.7,0.494]
[1642962399039,4.10008649,2426.2,2425.7,0.494]
[1642962400739,4.10008649,2426.2,2425.7,0.56369591]
[1642962401988,7.00333247,2426.2,2425.7,0.56369591]
[1642962402991,2.90324598,2426.0,2425.7,0.494]
[1642962403192,0.1648,2425.9,2425.7,0.494]
[1642962403689,0.1648,2426.0,2425.7,0.494]
[1642962403993,4.41410134,2425.9,2425.7,0.494]
[1642962404191,0.1648,2425.8,2425.7,0.494]
[1642962405434,1.51085536,2425.9,2425.7,0.494]
[1642962405834,4.41410134,2425.9,2425.7,0.494]
[1642962406643,4.25777803,2425.8,2424.6,4.2402]
[1642962406836,4.25777803,2425.8,2424.7,0.494]
[1642962406837,0.880631,2424.9,2424.7,0.494]
[1642962407039,2.89736549,2425.5,2424.7,0.494]
[1642962407040,0.1648,2425.4,2424.7,0.494]
[1642962407244,1.25596923,2425.1,2424.7,0.494]
[1642962407640,0.1648,2425.4,2424.7,0.494]
[1642962407942,0.91066794,2425.4,2424.7,0.494]
[1642962408789,1.50836971,2425.2,2424.7,0.494]
[1642962408980,0.1648,2425.1,2424.7,0.494]
[1642962409783,0.1648,2425.1,2424.8,0.06969591]
[1642962410182,0.1648,2425.1,2424.7,0.494]
[1642962410981,1.29152158,2424.8,2424.7,0.494]
[1642962411584,1.29152158,2424.8,2424.2,0.02]
[1642962412386,1.1703944,2424.4,2424.2,0.02]
[1642962412944,1.09191198,2424.3,2424.2,0.02]
[1642962413646,5.74753198,2424.3,2424.2,0.02]
[1642962414043,1.29753198,2424.3,2424.0,0.01352568]
[1642962414244,0.1649,2424.3,2424.0,0.01352568]
[1642962414448,0.065,2424.4,2424.1,0.494]
[1642962414644,0.0128359,2424.6,2424.1,0.494]
[1642962414645,0.1648,2424.5,2424.1,0.494]
[1642962414847,0.0128359,2424.6,2424.1,0.494]
[1642962415243,0.1648,2424.5,2424.1,0.494]
[1642962415443,4.1,2424.3,2424.1,0.494]
[1642962416586,3.065,2424.2,2424.1,0.494]
[1642962416786,0.165,2424.2,2423.8,0.02]
[1642962417185,4.1,2424.3,2423.8,0.02]
[1642962417786,4.1,2424.3,2423.9,0.494]
[1642962419188,0.165,2424.2,2423.9,0.494]
[1642962419488,0.87559876,2424.0,2423.9,0.494]
[1642962419688,0.165,2424.2,2423.9,0.494]
[1642962420340,7.9,2424.0,2423.6,0.02]
[1642962420542,1.72138759,2423.9,2423.6,0.02]
[1642962420746,0.97243164,2423.8,2423.6,0.02]
[1642962420947,8.27062,2423.7,2423.6,0.02]
[1642962421339,8.27062,2423.7,2423.4,0.02280338]
[1642962421546,8.10562,2423.5,2423.4,0.02280338]
[1642962421762,7.9142219,2423.3,2422.4,0.00142901]
[1642962421943,7.9142219,2423.3,2422.5,14.91]
[1642962421944,7.91263973,2423.1,2422.5,14.91]
[1642962422152,7.91263973,2423.1,2422.4,0.00142901]
[1642962422153,7.91295565,2422.5,2422.4,0.00142901]
[1642962422341,1.85182102,2422.5,2422.2,0.02]
[1642962422540,0.1651,2422.4,2422.2,0.02]
[1642962422752,0.0651,2422.4,2421.8,2.07910019]
[1642962422948,2.92400131,2423.3,2422.2,0.06954325]
[1642962423154,0.1651,2423.2,2422.3,0.494]
[1642962423345,0.0142219,2423.3,2422.3,0.494]
[1642962423543,0.0142219,2423.3,2422.5,1.13849465]
[1642962423809,0.0142219,2423.3,2422.6,0.494]
[1642962423992,0.0142219,2423.3,2422.7,0.20569]
[1642962424197,0.0142219,2423.3,2422.8,0.494]
[1642962424395,0.0142219,2423.3,2422.8,0.53435806]
[1642962424795,0.0142219,2423.3,2422.8,0.48435806]
[1642962425597,0.0142219,2423.3,2423.1,1.28861815]
[1642962425794,0.0142219,2423.3,2423.2,0.494]
[1642962426196,0.0142219,2423.3,2423.2,0.69969]
[1642962426398,2.89736549,2424.4,2423.3,7.9]
[1642962426596,3.9731,2424.8,2423.4,0.69969]
[1642962426796,3.9731,2424.8,2423.4,1.76923509]
[1642962426996,3.9731,2424.8,2423.5,0.06954509]
[1642962427196,0.165,2424.7,2423.8,1.42833902]
[1642962427404,3.81810944,2425.1,2423.9,0.69969]
[1642962427405,0.165,2424.8,2423.9,0.69969]
[1642962427640,2.07457457,2425.0,2423.9,0.69969]
[1642962427839,1.90977457,2425.0,2423.9,0.69969]
[1642962428043,1.85977457,2424.9,2423.9,1.69969]
[1642962428239,1.85977457,2425.0,2423.9,0.69969]
[1642962428442,3.06216549,2425.2,2423.9,4.21303415]
[1642962428443,1.05042928,2425.1,2423.9,4.21303415]
[1642962428644,0.1648,2425.2,2424.3,1.48965928]
[1642962428845,0.1648,2425.2,2424.4,3.42807079]
[1642962429042,3.83046272,2425.6,2424.5,4.49372954]
[1642962429043,2.89736549,2425.6,2424.5,4.49372954]
[1642962429242,2.89736549,2425.6,2424.6,0.86449]
[1642962429442,2.85,2425.4,2424.4,0.06954509]
[1642962429643,2.85,2425.4,2424.0,5.0677]
[1642962429644,0.01283559,2425.2,2424.0,5.13724509]
[1642962429842,0.01283559,2425.2,2424.5,0.494]
[1642962429843,0.1648,2425.1,2424.5,0.494]
[1642962430141,0.20629,2425.0,2424.5,0.494]
[1642962430341,0.1648,2424.9,2424.5,0.494]
[1642962430743,1.14411342,2424.6,2424.5,0.494]
[1642962430946,1.51520342,2424.6,2424.0,0.494]
[1642962431308,1.51520342,2424.6,2423.2,4.2093]
[1642962431309,1.02283613,2423.8,2423.7,0.494]
[1642962431896,2.39365172,2423.8,2423.7,0.494]
[1642962432493,1.02283613,2423.8,2423.7,0.494]
[1642962432703,6.27283613,2423.8,2423.7,0.17545515]
[1642962432902,6.27283613,2423.8,2423.1,0.494]
[1642962432903,0.05450824,2423.7,2423.1,0.494]
[1642962433204,6.27283613,2423.8,2423.1,0.494]
[1642962433397,1.21584247,2423.5,2423.1,0.494]
[1642962433599,1.02283613,2423.8,2423.1,0.494]
[1642962434699,1.14321394,2423.5,2423.1,0.494]
[1642962434900,1.02283613,2423.8,2423.1,0.494]
[1642962435338,5.12283613,2423.8,2423.1,0.494]
[1642962435746,4.1,2423.8,2423.1,0.494]
[1642962436844,5.17568751,2423.8,2423.1,0.494]
[1642962437240,0.165,2423.7,2423.1,0.494]
[1642962437947,1.36852004,2423.5,2423.1,0.494]
[1642962438645,0.165,2423.7,2423.1,0.494]
[1642962438894,4.1,2423.8,2423.1,0.494]
[1642962440095,4.1,2423.8,2423.2,0.165]
[1642962440291,4.1,2423.8,2423.3,0.494]
[1642962440493,4.1,2423.8,2423.4,0.165]
[1642962440692,4.1,2423.8,2423.3,0.56340968]
[1642962440693,4.1,2423.8,2423.5,0.494]
[1642962441296,4.1,2423.8,2423.6,0.23440968]
[1642962441493,0.0001,2423.8,2423.7,8.394]
[1642962441893,0.0001,2423.8,2423.7,0.494]
[1642962443751,0.0001,2423.8,2423.1,1.25710968]
[1642962443950,0.1651,2423.8,2423.2,0.494]
[1642962444550,0.1651,2423.8,2423.2,0.444]
[1642962444551,1.5188893,2423.3,2423.2,0.444]
[1642962444950,0.1651,2423.8,2423.2,0.444]
[1642962446057,1.41062365,2423.7,2423.2,0.444]
[1642962446298,0.165,2423.6,2423.2,0.444]
[1642962446698,0.165,2423.6,2422.8,0.20535806]
[1642962446699,0.20629,2423.5,2422.8,0.20535806]
[1642962446891,0.165,2423.4,2422.8,0.20535806]
[1642962447089,0.23672518,2423.3,2422.8,0.20535806]
[1642962447289,0.165,2423.2,2422.8,0.20535806]
[1642962448092,3.98632431,2422.9,2422.8,0.20535806]
[1642962448291,0.95132431,2422.9,2422.8,0.20535806]
[1642962448700,0.95132431,2422.9,2421.8,0.21242901]
[1642962448701,1.10393991,2422.2,2421.8,0.21242901]
[1642962448895,5.65,2422.8,2421.8,0.211]
[1642962448896,1.25782519,2422.4,2421.8,0.211]
[1642962449094,0.1651,2422.3,2421.8,0.211]
[1642962449694,0.1651,2422.7,2421.8,0.211]
[1642962449894,0.1651,2422.8,2421.9,0.56340968]
[1642962450539,1.25200749,2422.7,2421.9,0.56340968]
[1642962450744,0.1651,2422.6,2421.9,0.56340968]
[1642962450941,0.85784465,2422.5,2421.9,0.56340968]
[1642962451541,0.85784465,2422.5,2421.9,0.494]
[1642962451742,0.1651,2422.6,2421.9,0.494]
[1642962451743,1.04289704,2422.1,2421.9,0.494]
[1642962452057,1.04289704,2422.1,2421.8,0.211]
[1642962452058,1.44813695,2422.0,2421.8,0.211]
[1642962452243,1.44813695,2422.0,2421.8,0.0001]
[1642962452646,0.1651,2422.0,2421.8,0.0001]
[1642962453149,0.1651,2422.0,2421.6,0.1851]
[1642962453810,0.1651,2422.1,2421.6,0.02]
[1642962454009,0.1651,2422.7,2421.7,2.56700134]
[1642962454199,3.81198558,2423.5,2421.7,2.56700134]
[1642962454200,0.1651,2423.2,2421.7,3.47716877]
[1642962454395,1.90000306,2423.4,2421.8,7.24641134]
[1642962454396,0.1651,2423.3,2421.8,7.24641134]
[1642962454593,1.10909204,2423.2,2422.4,1.44549629]
[1642962454792,1.58124785,2423.3,2421.9,0.86479]
[1642962454793,1.13637802,2422.8,2422.5,0.494]
[1642962455000,1.13637802,2422.8,2421.7,0.1651]
[1642962455001,1.04052203,2422.4,2421.7,0.1651]
[1642962455199,1.04052203,2422.4,2421.6,0.02]
[1642962455200,0.1651,2422.3,2421.8,0.494]
[1642962455397,0.82795131,2422.0,2421.8,0.494]
[1642962455993,1.50990959,2421.9,2421.8,0.494]
[1642962456195,1.50990959,2421.9,2421.6,0.02]
[1642962456501,1.67500959,2421.9,2421.6,0.02]
[1642962456995,5.77500959,2421.9,2421.6,0.02]
[1642962458253,0.02907609,2421.8,2421.6,0.02]
[1642962458652,4.2651,2421.9,2421.6,0.0001]
[1642962459651,4.2651,2421.9,2421.7,0.06917322]
[1642962459652,4.1,2421.9,2421.7,0.06917322]
[1642962460250,4.1,2421.9,2421.6,0.0001]
[1642962460455,4.2651,2421.9,2421.6,0.0001]
[1642962460851,4.1,2421.9,2421.6,0.0001]
[1642962461488,4.1,2421.9,2421.7,0.06903507]
[1642962461695,4.1,2421.9,2421.7,0.56303507]
[1642962462288,4.1,2421.9,2421.8,1.28980617]
[1642962462492,2.25,2421.9,2421.8,8.30284124]
[1642962462694,0.1651,2422.6,2421.9,7.9]
[1642962462895,0.30329997,2422.9,2422.0,0.6591]
[1642962463095,0.1651,2423.1,2422.0,1.72813507]
[1642962463295,2.06510306,2423.5,2422.1,0.36903507]
[1642962463499,0.165,2423.6,2422.8,1.39639957]
[1642962463700,1.38398514,2423.7,2422.9,0.67129214]
[1642962463896,0.165,2423.8,2422.9,0.659]
[1642962464093,0.85452317,2423.9,2422.9,0.659]
[1642962464302,0.165,2423.8,2423.0,0.20569]
[1642962464497,1.90000306,2424.1,2423.1,0.659]
[1642962464696,2.06500306,2424.0,2423.1,0.659]
[1642962464895,1.90000306,2423.9,2423.2,1.18143923]
[1642962465144,2.06500306,2424.0,2423.3,0.494]
[1642962465340,1.01411301,2423.6,2423.3,0.494]
[1642962465541,2.06500306,2424.0,2423.3,0.494]
[1642962465941,0.165,2424.0,2423.3,0.494]
[1642962466142,3.24198423,2424.0,2423.3,0.494]
[1642962466540,0.92351941,2423.6,2423.3,0.494]
[1642962468045,0.165,2423.8,2423.3,0.494]
[1642962468446,2.06500306,2423.8,2423.3,0.494]
[1642962468644,2.06500306,2423.9,2423.3,0.494]
[1642962469099,0.165,2423.9,2423.3,0.494]
[1642962469897,2.06500306,2424.0,2423.3,0.494]
[1642962470099,1.90000306,2424.0,2423.3,0.494]
[1642962470299,1.04115011,2423.6,2423.3,0.494]
[1642962470500,3.48945026,2423.9,2423.3,0.494]
[1642962470699,2.06500306,2423.9,2423.3,0.494]
[1642962471303,1.90000306,2424.0,2423.3,0.494]
[1642962471801,0.99853864,2423.9,2423.3,0.494]
[1642962472402,2.8985417,2423.9,2423.3,0.494]
[1642962472662,0.99853864,2423.9,2423.3,0.494]
[1642962474262,2.8985417,2423.9,2423.3,0.494]
[1642962474462,0.95581878,2423.5,2423.3,0.494]
[1642962474672,2.06500306,2424.0,2423.3,0.494]
[1642962474673,9.33000306,2423.8,2423.3,0.494]
[1642962475165,8.83000306,2423.8,2423.3,0.494]
[1642962475567,1.10726665,2423.7,2423.3,0.494]
[1642962475765,1.90000306,2423.8,2423.3,0.494]
[1642962476068,9.49500306,2424.1,2423.4,1.94296743]
[1642962476289,9.33000306,2424.1,2423.5,0.659]
[1642962476995,0.83535889,2424.0,2423.5,0.659]
[1642962477595,9.33000306,2424.1,2423.5,0.659]
[1642962477794,4.1,2423.7,2423.5,0.659]
[1642962478399,1.90000306,2424.2,2423.7,7.9]
[1642962478598,1.90000306,2424.3,2423.8,0.959]
[1642962478797,1.10068117,2424.1,2423.8,0.659]
[1642962478996,3.00068423,2424.1,2423.8,0.494]
[1642962479595,1.90000306,2424.1,2423.8,0.494]
[1642962479800,2.05964736,2424.4,2423.8,0.494]
[1642962479801,1.90000306,2424.2,2423.8,0.494]
[1642962480043,1.90000306,2424.2,2423.9,1.54467203]
[1642962480257,1.90000306,2424.5,2424.0,0.494]
[1642962480446,7.43,2424.6,2424.0,0.494]
[1642962480447,1.90000306,2424.6,2424.1,0.1648]
[1642962480648,1.90000306,2424.6,2424.2,0.494]
[1642962481049,1.90000306,2424.6,2424.2,0.794]
[1642962481346,1.90000306,2424.7,2424.2,1.094]
[1642962481544,1.90000306,2424.8,2424.3,0.37049]
[1642962481759,1.90000306,2424.8,2424.4,2.03867203]
[1642962481760,1.00677304,2424.6,2424.4,2.03867203]
[1642962481947,0.96681671,2424.3,2424.2,0.1648]
[1642962482353,0.96681671,2424.3,2424.2,0.6588]
[1642962482544,2.77512323,2424.3,2424.2,0.6588]
[1642962482754,2.77512323,2424.3,2422.9,0.00142901]
[1642962482755,1.52882441,2424.1,2422.9,0.00142901]
[1642962482951,1.52882441,2424.1,2422.6,1.64884431]
[1642962482952,2.09948546,2424.0,2423.2,0.494]
[1642962483348,0.165,2424.0,2423.2,0.494]
[1642962483552,1.85117402,2424.1,2423.3,0.20569]
[1642962483800,1.85117402,2424.1,2423.4,0.494]
[1642962484188,0.54683504,2424.1,2423.4,0.494]
[1642962484389,1.15464812,2423.8,2423.4,0.794]
[1642962484590,1.15464812,2423.8,2423.5,0.37069]
[1642962484799,0.54683504,2424.1,2423.5,0.37069]
[1642962484800,0.54683504,2424.1,2423.7,0.20569]
[1642962485000,0.54683504,2424.1,2423.8,0.659]
[1642962485191,0.54683504,2424.1,2424.0,8.10569]
[1642962485391,0.71681671,2424.3,2424.1,6.75]
[1642962485599,1.36303267,2425.0,2424.1,6.75]
[1642962485600,6.3426529,2425.9,2424.2,12.34195189]
[1642962485797,8.71319167,2426.2,2424.9,0.01214811]
[1642962485798,2.9128112,2425.5,2424.9,0.01214811]
[1642962485997,2.9128112,2425.8,2425.0,0.37049]
[1642962486193,2.9128112,2425.9,2425.2,6.177]
[1642962486393,2.9128112,2425.9,2425.3,0.86449]
[1642962486592,1.41590995,2425.7,2425.3,1.86449]
[1642962486792,1.01782243,2425.5,2425.3,1.86449]
[1642962486992,4.1,2425.9,2425.3,0.86449]
[1642962487191,4.1,2425.9,2425.3,0.6588]
[1642962487404,0.1648,2425.8,2425.3,0.494]
[1642962487659,0.01258702,2425.4,2424.7,0.494]
[1642962487855,0.1648,2425.3,2424.4,0.494]
[1642962488054,1.29258042,2424.9,2424.4,0.494]
[1642962488257,1.14957996,2424.8,2424.4,0.494]
[1642962488654,1.14957996,2424.8,2424.2,0.20569]
[1642962488855,0.1648,2424.7,2423.9,0.69969]
[1642962489056,0.1648,2424.7,2424.0,3.5]
[1642962489256,1.19128296,2424.1,2424.0,3.5]
[1642962489456,2.23781833,2424.1,2424.0,3.5]
[1642962490162,2.23781833,2424.1,2423.7,3.5]
[1642962490757,1.04653537,2424.1,2423.5,0.16521]
[1642962490960,0.13819997,2424.8,2423.8,0.494]
[1642962491161,7.43,2425.0,2423.9,0.89866349]
[1642962491401,2.1255043,2425.5,2423.9,1.4798308]
[1642962491601,2.1255043,2425.5,2424.0,6.24686731]
[1642962491801,1.17373503,2424.7,2424.3,1.031629]
[1642962491997,1.17373503,2424.7,2424.4,1.05999038]
[1642962492807,1.17373503,2424.7,2424.4,0.55430038]
[1642962493207,1.17373503,2424.7,2424.4,0.494]
[1642962494504,1.17373503,2424.7,2424.4,0.56421265]
[1642962495140,1.17373503,2424.7,2424.4,0.494]
[1642962495541,1.17373503,2424.7,2424.5,1.54467203]
[1642962495741,1.17373503,2424.7,2424.5,1.58757256]
[1642962495944,0.1648,2425.3,2424.6,0.86449]
[1642962496145,0.1648,2425.3,2424.6,2.75206256]
[1642962496344,0.1648,2425.3,2424.8,0.00582713]
[1642962496540,0.1648,2425.3,2424.9,0.86449]
[1642962496741,0.01203587,2426.1,2424.9,0.99969]
[1642962496742,0.1648,2426.0,2424.9,0.99969]
[1642962496942,0.92800842,2425.1,2424.9,0.99969]
[1642962497143,0.1648,2426.0,2424.9,1.29969]
[1642962497344,2.10907403,2426.0,2425.0,0.1648]
[1642962497543,0.1648,2425.9,2425.1,0.494]
[1642962497745,0.1648,2425.9,2425.2,0.494]
[1642962497951,0.1648,2425.9,2425.3,0.494]
[1642962498152,0.93788526,2424.6,2424.4,1.51735991]
[1642962498349,0.1648,2425.0,2424.4,1.51735991]
[1642962499199,1.14121995,2424.5,2424.4,1.51735991]
[1642962500799,0.1648,2425.0,2424.4,1.51735991]
[1642962501001,0.3630758,2425.2,2424.4,1.81735991]
[1642962501400,2.09874766,2425.1,2424.4,1.81735991]
[1642962501613,2.09874766,2425.1,2424.3,0.494]
[1642962501801,0.1648,2425.0,2424.3,0.494]
[1642962502000,1.28050588,2425.0,2424.3,0.494]
[1642962502401,1.25160474,2424.4,2424.3,0.494]
[1642962502656,2.11417526,2424.4,2424.3,0.494]
[1642962503056,2.11417526,2424.4,2423.9,0.165206]
[1642962503057,4.4363903,2424.4,2423.9,0.165206]
[1642962503262,0.20964505,2424.3,2423.9,0.165206]
[1642962503654,0.37129,2424.3,2423.9,0.165206]
[1642962503858,0.165,2424.3,2423.9,0.165206]
[1642962504453,1.40493701,2424.0,2423.9,0.165206]
[1642962504654,1.56993701,2424.0,2423.9,0.165206]
[1642962505859,1.40493701,2424.0,2423.9,0.165206]
[1642962506289,0.95744934,2424.1,2423.9,0.165206]
[1642962506691,0.95744934,2424.1,2423.7,0.494]
[1642962506891,0.95744934,2424.1,2423.8,0.165]
[1642962507092,0.165,2424.7,2423.7,0.794]
[1642962507291,4.1,2424.1,2423.7,0.794]
[1642962507895,4.1,2424.1,2423.8,0.67069]
[1642962508098,4.1,2424.1,2423.9,0.494]
[1642962508296,4.1,2424.1,2424.0,5.12069]
[1642962508499,4.1,2424.1,2424.0,0.959]
[1642962508699,4.1,2424.1,2424.0,2.16469]
[1642962508897,4.1,2424.1,2424.0,1.259]
[1642962509094,4.1,2424.1,2424.0,0.659]
[1642962509297,4.1,2424.1,2424.0,0.494]
[1642962510441,5.60259123,2424.1,2423.5,0.165]
[1642962510643,5.60259123,2424.1,2423.4,0.165]
[1642962511046,1.12486783,2423.5,2423.4,0.165]
[1642962512446,1.12486783,2423.5,2423.3,1.259]
[1642962512650,1.12486783,2423.5,2423.3,1.094]
[1642962512848,1.12486783,2423.5,2423.3,0.494]
[1642962513653,1.12486783,2423.5,2423.3,0.794]
[1642962513892,1.50259123,2424.1,2423.3,1.094]
[1642962514994,1.50259123,2424.1,2423.4,1.51735991]
[1642962515195,0.82526963,2423.8,2423.5,0.494]
[1642962515394,0.82526963,2423.8,2423.5,0.794]
[1642962515596,0.82526963,2423.8,2423.5,1.094]
[1642962515995,0.82526963,2423.8,2423.5,2.094]
[1642962516997,0.82526963,2423.8,2423.5,1.094]
[1642962518050,4.92526963,2423.8,2423.5,1.094]
[1642962518250,4.92526963,2423.8,2423.6,3.5]
[1642962518550,0.13489814,2423.5,2423.4,1.0]
[1642962518756,0.13489814,2423.5,2423.4,1.494]
[1642962518949,0.13489814,2423.5,2423.4,0.494]
[1642962519655,0.89816144,2423.4,2423.3,0.165243]
[1642962520152,2.30493338,2423.4,2423.3,0.165243]
[1642962520353,6.51993338,2423.4,2423.3,0.165243]
[1642962521155,2.46993338,2423.4,2423.3,0.165243]
[1642962521402,6.26993338,2423.4,2423.3,0.165243]
[1642962521795,6.26993338,2423.4,2422.8,0.02]
[1642962521996,1.52945589,2422.9,2422.8,0.02]
[1642962522197,2.581832,2422.9,2422.8,0.02]
[1642962522600,1.05237611,2422.9,2422.8,0.02]
[1642962527447,8.30237611,2422.9,2422.8,0.02]
[1642962527653,8.46737611,2422.9,2422.8,0.02]
[1642962528048,8.49039605,2422.9,2422.8,0.02]
[1642962528449,8.69668605,2422.9,2422.8,0.02085219]
[1642962528649,12.79668605,2422.9,2422.8,0.02085219]
[1642962528896,11.74430994,2422.9,2422.8,5.219e-05]
[1642962529302,7.9,2422.8,2421.9,0.185]
[1642962529495,0.1651,2422.7,2421.9,0.18585219]
[1642962530295,1.40374715,2422.0,2421.9,0.18585219]
[1642962530499,2.40368147,2422.0,2421.9,0.18585219]
[1642962530899,0.1651,2422.6,2421.9,0.02085219]
[1642962531295,3.9544,2422.8,2421.9,0.02085219]
[1642962531296,0.1651,2422.7,2421.9,0.02085219]
[1642962531995,0.83047055,2422.0,2421.9,0.02085219]
[1642962532197,1.11895745,2422.3,2421.9,0.02085219]
[1642962532655,0.1651,2422.7,2421.9,0.02085219]
[1642962532850,0.03435923,2422.6,2421.9,0.51485219]
[1642962533050,0.03435923,2422.6,2421.9,0.81485219]
[1642962533251,1.07810243,2422.4,2421.9,0.81485219]
[1642962533451,0.03435923,2422.6,2421.9,0.81485219]
[1642962533653,0.03435923,2422.6,2422.0,4.23150183]
[1642962533860,0.03435923,2422.6,2422.1,0.69969]
[1642962534053,0.03435923,2422.6,2422.2,2.69261772]
[1642962534255,0.03435923,2422.6,2422.3,0.20569]
[1642962534558,0.03435923,2422.6,2422.5,8.70569]
[1642962534751,0.03435923,2422.6,2422.5,9.20054225]
[1642962534951,0.03435923,2422.6,2422.5,2.30054229]
[1642962535156,5.923e-05,2422.6,2422.5,11.80618182]
[1642962535355,0.13489814,2423.5,2422.6,7.9]
[1642962535552,0.13489814,2423.5,2422.7,2.57723332]
[1642962535751,0.13489814,2423.5,2422.7,4.24866529]
[1642962535952,0.13489814,2423.5,2422.8,0.27626962]
[1642962536154,0.13489814,2423.5,2422.9,0.494]
[1642962536403,0.13489814,2423.5,2422.9,0.79485235]
[1642962536602,0.13489814,2423.5,2423.0,0.165]
[1642962536805,0.13489814,2423.5,2423.1,0.494]
[1642962537005,0.13489814,2423.5,2423.1,0.79485235]
[1642962537212,0.90440645,2423.4,2423.1,0.79485235]
[1642962537808,0.90440645,2423.4,2423.1,0.49485237]
[1642962538009,0.90440645,2423.4,2423.1,0.18027081]
[1642962538407,2.31235199,2423.4,2423.1,0.18027081]
[1642962538609,3.91972919,2422.6,2422.5,0.165]
[1642962538809,3.91972919,2422.6,2422.5,5.38883228]
[1642962539010,3.91972919,2422.6,2422.5,5.88283228]
[1642962539209,0.13489814,2423.5,2422.6,7.9]
[1642962539410,0.13489814,2423.5,2422.7,3.24413302]
[1642962539609,0.13489814,2423.5,2422.8,0.165]
[1642962539815,0.13489814,2423.5,2422.9,0.494]
[1642962540042,0.13489814,2423.5,2423.0,1.88797991]